[Event "***Titled Tuesday 3|2 Blitz"]
[Site "Chess.com"]
[Date "2017.02.07"]
[Round "9"]
[White "Dlugy"]
[Black "RoelandPruijssers"]
[Result "1/2-1/2"]
[WhiteElo "2664"]
[BlackElo "2501"]
[TimeControl "180+2"]
[EndTime "15:17:43 PST"]
[Termination "Game drawn by agreement"]

1. d4 {[%clk 0:03:02]} 1... f5 {[%clk 0:03:00.5]} 2. Bf4 {[%clk 0:03:02]} 2...
Nf6 {[%clk 0:02:59.6]} 3. e3 {[%clk 0:03:03]} 3... g6 {[%clk 0:02:52.8]} 4. h4
{[%clk 0:03:03.9]} 4... h6 {[%clk 0:02:50.1]} 5. Nf3 {[%clk 0:03:03.3]} 5... d6
{[%clk 0:02:50.9]} 6. c4 {[%clk 0:03:01.6]} 6... e6 {[%clk 0:02:44.3]} 7. Nc3
{[%clk 0:03:02.3]} 7... Bg7 {[%clk 0:02:43.8]} 8. c5 {[%clk 0:02:54.4]} 8... O-O
{[%clk 0:02:10.8]} 9. cxd6 {[%clk 0:02:54.3]} 9... cxd6 {[%clk 0:02:11.5]} 10.
Qb3 {[%clk 0:02:52]} 10... Nc6 {[%clk 0:02:03.9]} 11. Qa3 {[%clk 0:02:38]} 11...
Ne8 {[%clk 0:02:02]} 12. d5 {[%clk 0:02:27.7]} 12... exd5 {[%clk 0:01:53]} 13.
Nxd5 {[%clk 0:02:26.2]} 13... Be6 {[%clk 0:01:51.6]} 14. O-O-O {[%clk
0:02:13.5]} 14... Rc8 {[%clk 0:01:35]} 15. Kb1 {[%clk 0:02:14]} 15... a5 {[%clk
0:01:36.3]} 16. Bb5 {[%clk 0:01:58]} 16... Bxd5 {[%clk 0:01:05.9]} 17. Rxd5
{[%clk 0:01:58.3]} 17... Nb4 {[%clk 0:01:07]} 18. Rd2 {[%clk 0:01:48.5]} 18...
Qe7 {[%clk 0:01:08]} 19. Qb3+ {[%clk 0:01:41.8]} 19... Kh8 {[%clk 0:01:09.2]}
20. a3 {[%clk 0:01:36.6]} 20... Nc7 {[%clk 0:01:00.7]} 21. Bxd6 {[%clk
0:01:31.2]} 21... Qe4+ {[%clk 0:00:59]} 22. Bd3 {[%clk 0:01:32.5]} 22... Nxd3
{[%clk 0:00:57.6]} 23. Qxd3 {[%clk 0:01:32.9]} 23... Rfd8 {[%clk 0:00:56.1]} 24.
Qxe4 {[%clk 0:01:19.2]} 24... fxe4 {[%clk 0:00:56.2]} 25. Bxc7 {[%clk
0:01:20.6]} 25... Re8 {[%clk 0:00:44.9]} 26. Bxa5 {[%clk 0:01:15.5]} 26... exf3
{[%clk 0:00:45.2]} 27. gxf3 {[%clk 0:01:16.6]} 27... Rc5 {[%clk 0:00:44.3]} 28.
Bb4 {[%clk 0:01:05.1]} 28... Rh5 {[%clk 0:00:45.1]} 29. Rdd1 {[%clk 0:00:46.9]}
29... b5 {[%clk 0:00:40.5]} 30. f4 {[%clk 0:00:40.7]} 30... Re6 {[%clk
0:00:37.3]} 31. Bc3 {[%clk 0:00:38.5]} 31... Bxc3 {[%clk 0:00:35.4]} 32. bxc3
{[%clk 0:00:40.4]} 32... Rc6 {[%clk 0:00:34.1]} 33. Kb2 {[%clk 0:00:41.4]} 33...
Rhc5 {[%clk 0:00:33.8]} 34. Rd8+ {[%clk 0:00:40.5]} 34... Kg7 {[%clk 0:00:34.8]}
35. Rd3 {[%clk 0:00:40.5]} 35... Rh5 {[%clk 0:00:31.6]} 36. Kb3 {[%clk
0:00:37.9]} 36... Kf7 {[%clk 0:00:23.6]} 37. Rd4 {[%clk 0:00:37.9]} 37... Rf6
{[%clk 0:00:22.9]} 38. c4 {[%clk 0:00:36.6]} 38... bxc4+ {[%clk 0:00:23.3]} 39.
Rxc4 {[%clk 0:00:38.4]} 39... Rb6+ {[%clk 0:00:23.8]} 40. Rb4 {[%clk 0:00:39.3]}
40... Rd6 {[%clk 0:00:25.5]} 41. Ka2 {[%clk 0:00:35.5]} 41... Rd2+ {[%clk
0:00:21.8]} 42. Rb2 {[%clk 0:00:36.6]} 42... Rd3 {[%clk 0:00:23.4]} 43. Rc1
{[%clk 0:00:30]} 43... Ra5 {[%clk 0:00:23.3]} 44. Rc7+ {[%clk 0:00:30.5]} 44...
Kf6 {[%clk 0:00:24.4]} 45. Rb3 {[%clk 0:00:30.4]} 45... Rd2+ {[%clk 0:00:25.1]}
46. Rb2 {[%clk 0:00:31.7]} 46... Rd3 {[%clk 0:00:26.4]} 47. Rb6+ {[%clk
0:00:28.4]} 47... Kf5 {[%clk 0:00:26.9]} 48. Rf7+ {[%clk 0:00:29.8]} 48... Ke4
{[%clk 0:00:27.2]} 49. Rb3 {[%clk 0:00:28.5]} 49... Rd2+ {[%clk 0:00:27.9]} 50.
Rb2 {[%clk 0:00:26.6]} 50... Rd3 {[%clk 0:00:28.9]} 51. Rf6 {[%clk 0:00:21.6]}
51... Rdxa3+ {[%clk 0:00:26.4]} 52. Kb1 {[%clk 0:00:23]} 52... Ra1+ {[%clk
0:00:27.5]} 53. Kc2 {[%clk 0:00:24.1]} 53... Rc5+ {[%clk 0:00:28.1]} 54. Kd2
{[%clk 0:00:25.3]} 54... Kf3 {[%clk 0:00:22.5]} 55. Rxg6 {[%clk 0:00:25.7]}
55... h5 {[%clk 0:00:12.4]} 56. Rg5 {[%clk 0:00:21.7]} 56... Rcc1 {[%clk
0:00:09.9]} 57. Kd3 {[%clk 0:00:22.6]} 57... Ra8 {[%clk 0:00:06.2]} 58. Kd4
{[%clk 0:00:18.8]} 58... Rd8+ {[%clk 0:00:05.2]} 59. Ke5 {[%clk 0:00:19.5]}
59... Rc5+ {[%clk 0:00:06.1]} 60. Ke6 {[%clk 0:00:20.4]} 60... Rc6+ {[%clk
0:00:06.3]} 61. Ke7 {[%clk 0:00:21.4]} 61... Rh8 {[%clk 0:00:05.6]} 62. f5
{[%clk 0:00:17.5]} 62... Rh7+ {[%clk 0:00:06.1]} 63. Kd8 {[%clk 0:00:18.1]}
63... Rd6+ {[%clk 0:00:07.3]} 64. Kc8 {[%clk 0:00:19.5]} 64... Ra6 {[%clk
0:00:05.3]} 65. Rg8 {[%clk 0:00:17.2]} 65... Ra8+ {[%clk 0:00:03.2]} 66. Rb8
{[%clk 0:00:16.9]} 66... Ra6 {[%clk 0:00:04.7]} 67. Rb7 {[%clk 0:00:15.2]} 67...
Rc6+ {[%clk 0:00:05.6]} 68. Kb8 {[%clk 0:00:15.7]} 68... Rhh6 {[%clk 0:00:03.9]}
69. Rc7 {[%clk 0:00:13.1]} 69... Rb6+ {[%clk 0:00:04.3]} 70. Kc8 {[%clk
0:00:14.1]} 70... Rbf6 {[%clk 0:00:05.7]} 71. Rg5 {[%clk 0:00:13.8]} 71... Kxf2
{[%clk 0:00:06.4]} 72. e4 {[%clk 0:00:15.2]} 72... Rh8+ {[%clk 0:00:06.8]} 73.
Kb7 {[%clk 0:00:15.7]} 73... Re8 {[%clk 0:00:07.5]} 74. Rc4 {[%clk 0:00:16.5]}
74... Kf3 {[%clk 0:00:08.1]} 75. Rg6 {[%clk 0:00:15.3]} 75... Rf7+ {[%clk
0:00:08.2]} 76. Kc6 {[%clk 0:00:15.9]} 76... Rc8+ {[%clk 0:00:05.2]} 77. Kd5
{[%clk 0:00:16.9]} 77... Rxc4 {[%clk 0:00:05.5]} 78. Kxc4 {[%clk 0:00:17.8]}
78... Kxe4 {[%clk 0:00:07.1]} 79. f6 {[%clk 0:00:19.1]} 79... Kf5 {[%clk
0:00:07.6]} 80. Rg5+ {[%clk 0:00:20.2]} 80... Kxf6 {[%clk 0:00:09]} 81. Rxh5
{[%clk 0:00:21.6]} 81... Kg6 {[%clk 0:00:10]} 82. Rg5+ {[%clk 0:00:21.4]}
1/2-1/2

[Event "***Titled Tuesday 3|2 Blitz"]
[Site "Chess.com"]
[Date "2017.02.07"]
[Round "9"]
[White "plouarzel"]
[Black "Bad4life"]
[Result "1-0"]
[WhiteElo "2396"]
[BlackElo "2285"]
[TimeControl "180+2"]
[EndTime "15:20:25 PST"]
[Termination "plouarzel won by checkmate"]

1. e4 {[%clk 0:03:02]} 1... c5 {[%clk 0:03:00.4]} 2. Nf3 {[%clk 0:02:57.5]} 2...
d6 {[%clk 0:03:01.7]} 3. Bb5+ {[%clk 0:02:57.4]} 3... Nd7 {[%clk 0:03:02.6]} 4.
O-O {[%clk 0:02:57.4]} 4... a6 {[%clk 0:03:03.5]} 5. Bd3 {[%clk 0:02:56]} 5...
e6 {[%clk 0:03:04.9]} 6. c3 {[%clk 0:02:56.5]} 6... b5 {[%clk 0:03:06.1]} 7. Re1
{[%clk 0:02:55.5]} 7... Bb7 {[%clk 0:03:07.3]} 8. Bc2 {[%clk 0:02:57]} 8... Qc7
{[%clk 0:03:08.6]} 9. d4 {[%clk 0:02:54]} 9... Ngf6 {[%clk 0:03:04.5]} 10. Nbd2
{[%clk 0:02:47.3]} 10... Rc8 {[%clk 0:03:02.2]} 11. Bd3 {[%clk 0:02:45.6]} 11...
Be7 {[%clk 0:02:59.2]} 12. Nf1 {[%clk 0:02:45.7]} 12... e5 {[%clk 0:02:47.1]}
13. d5 {[%clk 0:02:39.1]} 13... c4 {[%clk 0:02:47.6]} 14. Bc2 {[%clk 0:02:37]}
14... Nc5 {[%clk 0:02:49.1]} 15. b4 {[%clk 0:02:28.6]} 15... cxb3 {[%clk
0:02:47.1]} 16. axb3 {[%clk 0:02:28]} 16... Rd8 {[%clk 0:02:33.1]} 17. Ba3
{[%clk 0:02:26.1]} 17... Bc8 {[%clk 0:02:28.8]} 18. Bb4 {[%clk 0:02:26.7]} 18...
Qa7 {[%clk 0:02:21.6]} 19. Ng3 {[%clk 0:02:23.3]} 19... O-O {[%clk 0:02:21.8]}
20. Ba5 {[%clk 0:02:21.6]} 20... Rde8 {[%clk 0:02:20.7]} 21. b4 {[%clk
0:02:21.1]} 21... Nb7 {[%clk 0:02:14.2]} 22. Bd3 {[%clk 0:02:18.5]} 22... Ng4
{[%clk 0:02:10.9]} 23. Qe2 {[%clk 0:02:12.5]} 23... Nxa5 {[%clk 0:02:10.9]} 24.
Rxa5 {[%clk 0:02:12.6]} 24... Bd8 {[%clk 0:02:12.3]} 25. Ra2 {[%clk 0:02:13]}
25... Qc7 {[%clk 0:02:07.7]} 26. Rc1 {[%clk 0:02:09.7]} 26... Qb8 {[%clk
0:01:58.5]} 27. Nd2 {[%clk 0:02:10.4]} 27... Bb6 {[%clk 0:01:57.6]} 28. Nh1
{[%clk 0:01:53]} 28... Qc7 {[%clk 0:01:54.1]} 29. h3 {[%clk 0:01:49.7]} 29...
Nh6 {[%clk 0:01:53.5]} 30. Ng3 {[%clk 0:01:51]} 30... Qd8 {[%clk 0:01:52.3]} 31.
c4 {[%clk 0:01:45.4]} 31... bxc4 {[%clk 0:01:41]} 32. Nxc4 {[%clk 0:01:47.3]}
32... Qg5 {[%clk 0:01:41.4]} 33. Rac2 {[%clk 0:01:20.5]} 33... Bd4 {[%clk
0:01:34.2]} 34. Ne3 {[%clk 0:01:10.8]} 34... f5 {[%clk 0:01:19.4]} 35. Nexf5
{[%clk 0:01:05.8]} 35... Bxf5 {[%clk 0:01:13.8]} 36. Nxf5 {[%clk 0:01:05.4]}
36... Nxf5 {[%clk 0:01:14.2]} 37. exf5 {[%clk 0:01:06.6]} 37... Rb8 {[%clk
0:01:06.6]} 38. Bxa6 {[%clk 0:00:59.8]} 38... Rxb4 {[%clk 0:01:02.7]} 39. Bd3
{[%clk 0:00:49.9]} 39... Rb2 {[%clk 0:00:58.7]} 40. Rf1 {[%clk 0:00:29.4]} 40...
Rfb8 {[%clk 0:00:46.4]} 41. Rxb2 {[%clk 0:00:25]} 41... Rxb2 {[%clk 0:00:48.3]}
42. Qe4 {[%clk 0:00:26.1]} 42... Qg3 {[%clk 0:00:28]} 43. Qf3 {[%clk 0:00:16]}
43... Qxf3 {[%clk 0:00:19.1]} 44. gxf3 {[%clk 0:00:17.9]} 44... Kf7 {[%clk
0:00:16.5]} 45. Kg2 {[%clk 0:00:17.9]} 45... Kf6 {[%clk 0:00:18]} 46. Kg3 {[%clk
0:00:18.6]} 46... Rd2 {[%clk 0:00:18.4]} 47. Be4 {[%clk 0:00:19.3]} 47... Kg5
{[%clk 0:00:18.9]} 48. h4+ {[%clk 0:00:20.2]} 48... Kf6 {[%clk 0:00:20.2]} 49.
f4 {[%clk 0:00:21.3]} 49... exf4+ {[%clk 0:00:20.4]} 50. Kf3 {[%clk 0:00:22.4]}
50... Ke5 {[%clk 0:00:20.8]} 51. Bb1 {[%clk 0:00:21.8]} 51... Kxd5 {[%clk
0:00:20.4]} 52. h5 {[%clk 0:00:19.3]} 52... h6 {[%clk 0:00:19.3]} 53. Be4+
{[%clk 0:00:17]} 53... Ke5 {[%clk 0:00:20.3]} 54. Bb1 {[%clk 0:00:18.3]} 54...
Rb2 {[%clk 0:00:20.6]} 55. Bd3 {[%clk 0:00:15.2]} 55... Rb3 {[%clk 0:00:19.5]}
56. Re1+ {[%clk 0:00:16.2]} 56... Kf6 {[%clk 0:00:18.2]} 57. Ke4 {[%clk
0:00:16.1]} 57... Be5 {[%clk 0:00:16.3]} 58. Rd1 {[%clk 0:00:14.4]} 58... Rb4+
{[%clk 0:00:14.3]} 59. Kf3 {[%clk 0:00:15.6]} 59... Kg5 {[%clk 0:00:15.8]} 60.
Rg1+ {[%clk 0:00:13.7]} 60... Kf6 {[%clk 0:00:13.8]} 61. Rg6+ {[%clk 0:00:13.4]}
61... Kf7 {[%clk 0:00:15.4]} 62. Be4 {[%clk 0:00:13.2]} 62... Rb3+ {[%clk
0:00:16.1]} 63. Kg4 {[%clk 0:00:14]} 63... Ke7 {[%clk 0:00:16.7]} 64. Re6+
{[%clk 0:00:12.7]} 64... Kd7 {[%clk 0:00:16.8]} 65. Rg6 {[%clk 0:00:12.2]} 65...
Rc3 {[%clk 0:00:16.5]} 66. Bd5 {[%clk 0:00:10.7]} 66... Rc5 {[%clk 0:00:16.9]}
67. Be6+ {[%clk 0:00:11.3]} 67... Ke7 {[%clk 0:00:17.6]} 68. Kf3 {[%clk
0:00:08.4]} 68... Rc3+ {[%clk 0:00:18.6]} 69. Ke4 {[%clk 0:00:07.3]} 69... Rh3
{[%clk 0:00:18.2]} 70. Bc4 {[%clk 0:00:06.6]} 70... Rxh5 {[%clk 0:00:18.1]} 71.
Re6+ {[%clk 0:00:07.7]} 71... Kd7 {[%clk 0:00:19.1]} 72. Bb5+ {[%clk 0:00:09.1]}
72... Kc7 {[%clk 0:00:19.8]} 73. Re7+ {[%clk 0:00:10.4]} 73... Kb6 {[%clk
0:00:21.3]} 74. Be2 {[%clk 0:00:10.9]} 74... Rh3 {[%clk 0:00:21.7]} 75. Bf3
{[%clk 0:00:11.7]} 75... Rh2 {[%clk 0:00:21.9]} 76. Re8 {[%clk 0:00:05.2]} 76...
Rxf2 {[%clk 0:00:22.8]} 77. Rb8+ {[%clk 0:00:06.3]} 77... Kc7 {[%clk 0:00:24.3]}
78. Rb1 {[%clk 0:00:08.1]} 78... Rc2 {[%clk 0:00:25.2]} 79. Kd3 {[%clk 0:00:09]}
79... Rc3+ {[%clk 0:00:26.1]} 80. Ke4 {[%clk 0:00:09.5]} 80... Rc4+ {[%clk
0:00:26.8]} 81. Kd5 {[%clk 0:00:10.4]} 81... Rc5+ {[%clk 0:00:26.6]} 82. Ke6
{[%clk 0:00:11.6]} 82... Rc3 {[%clk 0:00:17.9]} 83. Rb7+ {[%clk 0:00:12.2]}
83... Kc8 {[%clk 0:00:19.5]} 84. Bd5 {[%clk 0:00:13.7]} 84... Rc7 {[%clk
0:00:20]} 85. Rb3 {[%clk 0:00:13.2]} 85... Kd8 {[%clk 0:00:19.2]} 86. Bf3 {[%clk
0:00:10.4]} 86... Re7+ {[%clk 0:00:20.2]} 87. Kd5 {[%clk 0:00:11]} 87... Ra7
{[%clk 0:00:21.2]} 88. Bg4 {[%clk 0:00:09.9]} 88... Ke7 {[%clk 0:00:22]} 89. Rb5
{[%clk 0:00:09.8]} 89... Rc7 {[%clk 0:00:23.1]} 90. Rb8 {[%clk 0:00:09.7]} 90...
Rc5+ {[%clk 0:00:23.9]} 91. Ke4 {[%clk 0:00:10.9]} 91... Rc4+ {[%clk 0:00:25.5]}
92. Kd5 {[%clk 0:00:11.3]} 92... Rc5+ {[%clk 0:00:26.7]} 93. Ke4 {[%clk
0:00:12.2]} 93... d5+ {[%clk 0:00:26.6]} 94. Kxe5 {[%clk 0:00:12.9]} 94... Rc7
{[%clk 0:00:14.2]} 95. Kxd5 {[%clk 0:00:09.7]} 95... Kf6 {[%clk 0:00:15.1]} 96.
Rb6+ {[%clk 0:00:08.7]} 96... Kg5 {[%clk 0:00:13.8]} 97. Rg6+ {[%clk 0:00:09.9]}
97... Kh4 {[%clk 0:00:15.4]} 98. Bf3 {[%clk 0:00:09.9]} 98... Rf7 {[%clk
0:00:14.8]} 99. Ke5 {[%clk 0:00:10.3]} 99... Kh3 {[%clk 0:00:13.8]} 100. Kxf4
{[%clk 0:00:10.5]} 100... Ra7 {[%clk 0:00:09.1]} 101. Rg1 {[%clk 0:00:11.5]}
101... Ra4+ {[%clk 0:00:08.5]} 102. Be4 {[%clk 0:00:12.8]} 102... Ra2 {[%clk
0:00:06.6]} 103. Rxg7 {[%clk 0:00:11.4]} 103... Rf2+ {[%clk 0:00:07.5]} 104. Bf3
{[%clk 0:00:12.4]} 104... h5 {[%clk 0:00:08.4]} 105. f6 {[%clk 0:00:13]} 105...
Rb2 {[%clk 0:00:04.4]} 106. Rg1 {[%clk 0:00:13.7]} 106... Rb4+ {[%clk
0:00:05.5]} 107. Be4 {[%clk 0:00:15]} 107... Rb2 {[%clk 0:00:06.5]} 108. f7
{[%clk 0:00:15.9]} 108... Rf2+ {[%clk 0:00:08]} 109. Bf3 {[%clk 0:00:16.6]}
109... h4 {[%clk 0:00:09.5]} 110. Rh1+ {[%clk 0:00:16.8]} 110... Rh2 {[%clk
0:00:10.9]} 111. Rxh2+ {[%clk 0:00:17.6]} 111... Kxh2 {[%clk 0:00:12.8]} 112.
f8=Q {[%clk 0:00:18.6]} 112... h3 {[%clk 0:00:14.3]} 113. Qb4 {[%clk 0:00:11.7]}
113... Kg1 {[%clk 0:00:14.1]} 114. Qe1+ {[%clk 0:00:12.8]} 114... Kh2 {[%clk
0:00:15.3]} 115. Qf2# {[%clk 0:00:13.2]} 1-0

[Event "***Titled Tuesday 3|2 Blitz"]
[Site "Chess.com"]
[Date "2017.02.07"]
[Round "9"]
[White "AllStarShark"]
[Black "Rating-Schmating"]
[Result "1/2-1/2"]
[WhiteElo "2231"]
[BlackElo "2268"]
[TimeControl "180+2"]
[EndTime "15:21:06 PST"]
[Termination "Game drawn by 50-move rule"]

1. d4 {[%clk 0:03:02]} 1... Nf6 {[%clk 0:03:00.7]} 2. Bg5 {[%clk 0:03:01.7]}
2... d5 {[%clk 0:02:59.6]} 3. Bxf6 {[%clk 0:03:01.9]} 3... exf6 {[%clk
0:02:58.9]} 4. e3 {[%clk 0:03:01.5]} 4... Bf5 {[%clk 0:02:59.8]} 5. g3 {[%clk
0:03:00.7]} 5... Bd6 {[%clk 0:03:00.8]} 6. Bg2 {[%clk 0:03:01.6]} 6... c6 {[%clk
0:03:02.1]} 7. Ne2 {[%clk 0:03:01.2]} 7... Qc7 {[%clk 0:03:01.2]} 8. Nd2 {[%clk
0:03:01.7]} 8... Nd7 {[%clk 0:03:01.7]} 9. b3 {[%clk 0:02:59]} 9... O-O {[%clk
0:03:01.3]} 10. O-O {[%clk 0:02:58.9]} 10... Nb6 {[%clk 0:03:02]} 11. c4 {[%clk
0:02:59.2]} 11... dxc4 {[%clk 0:03:01.5]} 12. bxc4 {[%clk 0:02:59.2]} 12... c5
{[%clk 0:03:02.9]} 13. e4 {[%clk 0:02:53.3]} 13... Bd7 {[%clk 0:02:55.3]} 14. d5
{[%clk 0:02:53]} 14... Rfe8 {[%clk 0:02:49.1]} 15. a4 {[%clk 0:02:53]} 15... Be5
{[%clk 0:02:40.2]} 16. a5 {[%clk 0:02:51.6]} 16... Bxa1 {[%clk 0:02:37.3]} 17.
Qxa1 {[%clk 0:02:48.1]} 17... Na4 {[%clk 0:02:31.4]} 18. Nb3 {[%clk 0:02:38.3]}
18... b6 {[%clk 0:02:19.9]} 19. Rd1 {[%clk 0:02:04.6]} 19... Rab8 {[%clk
0:02:17]} 20. d6 {[%clk 0:02:04.4]} 20... Qc8 {[%clk 0:02:12.5]} 21. f4 {[%clk
0:01:58.3]} 21... Qa6 {[%clk 0:02:11.9]} 22. Rc1 {[%clk 0:01:52]} 22... Bc6
{[%clk 0:02:04.7]} 23. e5 {[%clk 0:01:51.1]} 23... Bxg2 {[%clk 0:02:03.6]} 24.
Kxg2 {[%clk 0:01:53]} 24... fxe5 {[%clk 0:02:03.8]} 25. Qxa4 {[%clk 0:01:52.3]}
25... exf4 {[%clk 0:01:57.7]} 26. Nxf4 {[%clk 0:01:53.1]} 26... Qb7+ {[%clk
0:01:58.7]} 27. Nd5 {[%clk 0:01:50.8]} 27... Rbd8 {[%clk 0:01:57.4]} 28. axb6
{[%clk 0:01:50.3]} 28... axb6 {[%clk 0:01:56.6]} 29. Qb5 {[%clk 0:01:31]} 29...
Re2+ {[%clk 0:01:50.3]} 30. Kf1 {[%clk 0:01:29.8]} 30... Rxh2 {[%clk 0:01:42.5]}
31. Qxb6 {[%clk 0:01:24.7]} 31... Qxb6 {[%clk 0:01:37.6]} 32. Nxb6 {[%clk
0:01:26.6]} 32... Rh1+ {[%clk 0:01:38.8]} 33. Kg2 {[%clk 0:01:24.1]} 33... Rxc1
{[%clk 0:01:39.6]} 34. Nxc1 {[%clk 0:01:26]} 34... Rxd6 {[%clk 0:01:40.9]} 35.
Nd5 {[%clk 0:01:22.7]} 35... g6 {[%clk 0:01:36.9]} 36. Nd3 {[%clk 0:01:23]}
36... Ra6 {[%clk 0:01:35]} 37. Nxc5 {[%clk 0:01:22.9]} 37... Ra2+ {[%clk
0:01:36]} 38. Kf3 {[%clk 0:01:23.3]} 38... Rc2 {[%clk 0:01:36.6]} 39. Ne3 {[%clk
0:01:19.9]} 39... Rc3 {[%clk 0:01:36.1]} 40. Ne4 {[%clk 0:01:20.6]} 40... Rc1
{[%clk 0:01:34.4]} 41. Kf4 {[%clk 0:01:18.3]} 41... f5 {[%clk 0:01:33.7]} 42.
Ng5 {[%clk 0:01:12.5]} 42... h6 {[%clk 0:01:33.3]} 43. Ne6 {[%clk 0:01:07.1]}
43... Kf7 {[%clk 0:01:31.7]} 44. Nd4 {[%clk 0:00:59.5]} 44... Kf6 {[%clk
0:01:27.3]} 45. Nd5+ {[%clk 0:01:00.2]} 45... Kf7 {[%clk 0:01:27.1]} 46. Ne3
{[%clk 0:01:00.5]} 46... Ke7 {[%clk 0:01:18.4]} 47. Ke5 {[%clk 0:00:53.1]} 47...
Re1 {[%clk 0:01:14.7]} 48. Kf4 {[%clk 0:00:53.7]} 48... Kd6 {[%clk 0:01:14.2]}
49. Ndxf5+ {[%clk 0:00:47.9]} 49... gxf5 {[%clk 0:01:11.9]} 50. Nxf5+ {[%clk
0:00:49.8]} 50... Ke6 {[%clk 0:01:08.3]} 51. Nxh6 {[%clk 0:00:48.6]} 51... Rc1
{[%clk 0:01:08.9]} 52. Ng4 {[%clk 0:00:43.4]} 52... Rxc4+ {[%clk 0:01:09.3]} 53.
Kf3 {[%clk 0:00:44.4]} 53... Rc3+ {[%clk 0:01:07.8]} 54. Kf4 {[%clk 0:00:43.1]}
54... Ra3 {[%clk 0:01:07.9]} 55. Ne3 {[%clk 0:00:36.7]} 55... Kf6 {[%clk
0:01:04.4]} 56. Ng4+ {[%clk 0:00:34.3]} 56... Kg6 {[%clk 0:01:04.1]} 57. Ne5+
{[%clk 0:00:34.9]} 57... Kh5 {[%clk 0:01:04.5]} 58. g4+ {[%clk 0:00:35.8]} 58...
Kh6 {[%clk 0:01:04]} 59. g5+ {[%clk 0:00:36.6]} 59... Kh5 {[%clk 0:01:05.3]} 60.
Kf5 {[%clk 0:00:35.6]} 60... Ra1 {[%clk 0:01:02.8]} 61. g6 {[%clk 0:00:36.5]}
61... Rf1+ {[%clk 0:01:03.4]} 62. Ke6 {[%clk 0:00:36.2]} 62... Kh6 {[%clk
0:01:03.7]} 63. Kd5 {[%clk 0:00:34.3]} 63... Kg7 {[%clk 0:01:03.7]} 64. Ke6
{[%clk 0:00:34.7]} 64... Rf2 {[%clk 0:01:02.2]} 65. Kd5 {[%clk 0:00:31.7]} 65...
Rf8 {[%clk 0:01:01.9]} 66. Ke6 {[%clk 0:00:30.8]} 66... Rf1 {[%clk 0:01:01.6]}
67. Kd5 {[%clk 0:00:31.6]} 67... Kf6 {[%clk 0:01:02.5]} 68. Nc6 {[%clk
0:00:25.5]} 68... Kxg6 {[%clk 0:01:01.9]} 69. Ne5+ {[%clk 0:00:21]} 69... Kf5
{[%clk 0:01:02.4]} 70. Nc4 {[%clk 0:00:20.8]} 70... Rd1+ {[%clk 0:01:03]} 71.
Kc5 {[%clk 0:00:21]} 71... Ke6 {[%clk 0:01:03.4]} 72. Ne3 {[%clk 0:00:20.2]}
72... Rd3 {[%clk 0:01:02.3]} 73. Nc4 {[%clk 0:00:20.8]} 73... Rd8 {[%clk
0:01:01.8]} 74. Nb6 {[%clk 0:00:20.7]} 74... Ke5 {[%clk 0:00:58.8]} 75. Nc4+
{[%clk 0:00:20.6]} 75... Kf4 {[%clk 0:00:57.9]} 76. Nb6 {[%clk 0:00:19.2]} 76...
Ke4 {[%clk 0:00:57.2]} 77. Kc6 {[%clk 0:00:16]} 77... Kd4 {[%clk 0:00:51.5]} 78.
Kc7 {[%clk 0:00:14.5]} 78... Rh8 {[%clk 0:00:51.4]} 79. Kc6 {[%clk 0:00:14.8]}
79... Rh6+ {[%clk 0:00:52]} 80. Kc7 {[%clk 0:00:14.4]} 80... Kc5 {[%clk
0:00:52]} 81. Nd7+ {[%clk 0:00:15.5]} 81... Kb5 {[%clk 0:00:51.3]} 82. Ne5
{[%clk 0:00:13.5]} 82... Re6 {[%clk 0:00:46.3]} 83. Nd7 {[%clk 0:00:12.5]} 83...
Rc6+ {[%clk 0:00:46.4]} 84. Kd8 {[%clk 0:00:12.3]} 84... Rd6 {[%clk 0:00:43.6]}
85. Ke7 {[%clk 0:00:13.3]} 85... Kc6 {[%clk 0:00:44.6]} 86. Ne5+ {[%clk
0:00:13.7]} 86... Kd5 {[%clk 0:00:45.8]} 87. Nf7 {[%clk 0:00:11]} 87... Re6+
{[%clk 0:00:46.6]} 88. Kd7 {[%clk 0:00:11.6]} 88... Rg6 {[%clk 0:00:46.1]} 89.
Ke7 {[%clk 0:00:10.8]} 89... Ra6 {[%clk 0:00:46.6]} 90. Ng5 {[%clk 0:00:09.8]}
90... Ke5 {[%clk 0:00:40.8]} 91. Nf7+ {[%clk 0:00:10.1]} 91... Kf4 {[%clk
0:00:41.4]} 92. Kd7 {[%clk 0:00:09.8]} 92... Kf5 {[%clk 0:00:41.4]} 93. Nd6+
{[%clk 0:00:10.7]} 93... Ke5 {[%clk 0:00:41.4]} 94. Nf7+ {[%clk 0:00:11.3]}
94... Kd5 {[%clk 0:00:43.1]} 95. Ng5 {[%clk 0:00:11.3]} 95... Ra7+ {[%clk
0:00:44.1]} 96. Ke8 {[%clk 0:00:12.4]} 96... Ke5 {[%clk 0:00:45.2]} 97. Kd8
{[%clk 0:00:12]} 97... Kf6 {[%clk 0:00:44.1]} 98. Ne4+ {[%clk 0:00:12.4]} 98...
Ke6 {[%clk 0:00:45.7]} 99. Kc8 {[%clk 0:00:12.3]} 99... Kd5 {[%clk 0:00:44.6]}
100. Nf6+ {[%clk 0:00:10.5]} 100... Kc6 {[%clk 0:00:45]} 101. Kd8 {[%clk
0:00:11.7]} 101... Kd6 {[%clk 0:00:42.7]} 102. Ne8+ {[%clk 0:00:11]} 102... Kc6
{[%clk 0:00:41]} 103. Nf6 {[%clk 0:00:11.7]} 103... Rf7 {[%clk 0:00:40.9]} 104.
Ne8 {[%clk 0:00:09.7]} 104... Rd7+ {[%clk 0:00:40.5]} 105. Kc8 {[%clk 0:00:10]}
105... Re7 {[%clk 0:00:41.5]} 106. Kd8 {[%clk 0:00:10.6]} 106... Re5 {[%clk
0:00:41.5]} 107. Nf6 {[%clk 0:00:07.8]} 107... Re6 {[%clk 0:00:32.1]} 108. Ne8
{[%clk 0:00:05.3]} 108... Rg6 {[%clk 0:00:29]} 109. Ke7 {[%clk 0:00:05.8]}
109... Kd5 {[%clk 0:00:27.1]} 110. Nf6+ {[%clk 0:00:06.3]} 110... Ke5 {[%clk
0:00:26.1]} 111. Nd7+ {[%clk 0:00:07.4]} 111... Kf5 {[%clk 0:00:27.7]} 112. Kf7
{[%clk 0:00:08.1]} 112... Rh6 {[%clk 0:00:27.7]} 113. Ke7 {[%clk 0:00:09]}
113... Re6+ {[%clk 0:00:27.2]} 114. Kf7 {[%clk 0:00:09.5]} 114... Rd6 {[%clk
0:00:28.8]} 115. Nc5 {[%clk 0:00:10.4]} 115... Rc6 {[%clk 0:00:28.8]} 116. Nd7
{[%clk 0:00:10.1]} 116... Ra6 {[%clk 0:00:25.6]} 117. Ke7 {[%clk 0:00:11]}
117... Kg6 {[%clk 0:00:21.3]} 118. Ne5+ {[%clk 0:00:11]} 118... Kg7 {[%clk
0:00:21.5]} 119. Nd7 {[%clk 0:00:11.9]} 119... Ra7 {[%clk 0:00:21.8]} 120. Kd6
{[%clk 0:00:12.6]} 1/2-1/2